fUSD/lending_fUSD_20250205
["ID","MTS","AMOUNT","RATE_DAILY","PERIOD"]
[351694153,1738745436371,-500.0,8.799e-05,2]
[351694154,1738745436384,-163.8806921,8.799e-05,2]
[351694155,1738745436397,-336.1193079,8.799e-05,2]
[351694156,1738745436406,-500.0,8.799e-05,2]
[351694157,1738745436415,-500.0,8.799e-05,2]
[351694158,1738745436426,-500.0,8.799e-05,2]
[351694159,1738745436435,-82.1306921,8.799e-05,2]
[351694160,1738745436496,-417.8693079,8.799e-05,2]
[351694161,1738745436505,-365.0706921,8.799e-05,2]
[351694162,1738745436517,-134.9293079,8.799e-05,2]
[351694163,1738745436526,-500.0,8.799e-05,2]
[351694164,1738745436536,-85.4006921,8.799e-05,2]
[351694165,1738745436548,-414.5993079,8.799e-05,2]
[351694166,1738745436558,-177.2356725,8.799e-05,2]
[351694167,1738745436569,-322.7643275,8.799e-05,2]
[351694168,1738745436578,-500.0,8.799e-05,2]
[351694169,1738745436587,-500.0,8.799e-05,2]
[351694170,1738745436597,-500.0,8.799e-05,2]
[351694171,1738745436606,-500.0,8.799e-05,2]
[351694172,1738745436616,-185.2356725,8.799e-05,2]
[351694177,1738745440072,-314.7643275,8.799e-05,2]
[351694178,1738745440081,-152.656673,8.799e-05,2]
[351694179,1738745440228,-347.343327,8.799e-05,2]
[351694180,1738745440238,-500.0,8.799e-05,2]
[351694181,1738745440248,-500.0,8.799e-05,2]
[351694182,1738745440258,-500.0,8.799e-05,2]
[351694183,1738745440267,-500.0,8.799e-05,2]
[351694184,1738745440277,-500.0,8.799e-05,2]
[351694185,1738745440287,-500.0,8.799e-05,2]
[351694186,1738745440296,-500.0,8.799e-05,2]
[351694187,1738745440305,-516.20821666,8.799e-05,2]
[351694188,1738745440314,-500.0,8.799e-05,2]
[351694189,1738745440324,-500.0,8.799e-05,2]
[351694190,1738745440333,-500.0,8.799e-05,2]
[351694191,1738745440342,-625.0,8.799e-05,2]
[351694192,1738745440351,-500.0,8.799e-05,2]
[351694193,1738745440360,-500.68588007,8.799e-05,2]
[351694194,1738745440369,-612.38,8.799e-05,2]
[351694195,1738745440378,-500.0,8.799e-05,2]
[351694196,1738745440389,-500.0,8.799e-05,2]
[351694197,1738745440399,-509.59,8.799e-05,2]
[351694198,1738745440408,-500.0,8.799e-05,2]
[351694199,1738745440417,-500.0,8.799e-05,2]
[351694200,1738745440427,-500.0,8.799e-05,2]
[351694201,1738745440436,-320.500609,8.799e-05,2]
[351694202,1738745440445,-616.59,8.799e-05,2]
[351694203,1738745440454,-500.0,8.799e-05,2]
[351694204,1738745440463,-500.0,8.799e-05,2]
[351694205,1738745440474,-502.85227709,8.799e-05,2]
[351694206,1738745440484,-500.0,8.799e-05,2]
[351694207,1738745440499,-500.0,8.799e-05,2]
[351694209,1738745440518,-501.28398833,8.799e-05,2]
[351694211,1738745440528,-509.39709338,8.799e-05,2]
[351694212,1738745440537,-563.17,8.799e-05,2]
[351694213,1738745440549,-306.574254,8.799e-05,2]
[351694214,1738745440560,-500.0,8.799e-05,2]
[351694215,1738745440569,-500.0,8.799e-05,2]
[351694216,1738745440579,-527.59,8.799e-05,2]
[351694217,1738745440588,-500.0,8.799e-05,2]
[351694218,1738745440597,-500.0,8.799e-05,2]
[351694219,1738745440606,-504.03325697,8.799e-05,2]
[351694220,1738745440615,-500.0,8.799e-05,2]
[351694221,1738745440625,-500.0,8.799e-05,2]
[351694222,1738745440634,-500.0,8.799e-05,2]
[351694223,1738745440643,-500.0,8.799e-05,2]
[351694224,1738745440651,-500.0,8.799e-05,2]
[351694225,1738745440660,-596.73144699,8.799e-05,2]
[351694226,1738745440670,-500.0,8.799e-05,2]
[351694227,1738745440679,-501.01210354,8.799e-05,2]
[351694228,1738745440688,-500.0,8.799e-05,2]
[351694229,1738745440697,-500.0,8.799e-05,2]
[351694230,1738745440706,-500.0,8.799e-05,2]
[351694231,1738745440715,-500.0,8.799e-05,2]
[351694232,1738745440725,-500.0,8.799e-05,2]
[351694233,1738745440734,-500.0,8.799e-05,2]
[351694234,1738745440745,-500.0,8.799e-05,2]
[351694235,1738745440754,-500.0,8.799e-05,2]
[351694236,1738745440763,-500.0,8.799e-05,2]
[351694237,1738745440772,-500.0,8.799e-05,2]
[351694238,1738745440782,-500.0,8.799e-05,2]
[351694239,1738745440792,-500.0,8.799e-05,2]
[351694240,1738745440801,-500.0,8.799e-05,2]
[351694241,1738745440810,-500.0,8.799e-05,2]
[351694242,1738745440821,-503.20874577,8.799e-05,2]
[351694243,1738745440831,-500.0,8.799e-05,2]
[351694244,1738745440840,-500.0,8.799e-05,2]
[351694245,1738745440851,-539.90319323,8.799e-05,2]
[351694246,1738745440861,-500.0,8.799e-05,2]
[351694247,1738745440870,-500.0,8.799e-05,2]
[351694248,1738745440881,-500.0,8.799e-05,2]
[351694249,1738745440891,-500.0,8.799e-05,2]
[351694250,1738745440900,-500.0,8.799e-05,2]
[351694251,1738745440910,-500.0,8.799e-05,2]
[351694252,1738745440919,-500.0,8.799e-05,2]
[351694253,1738745440928,-500.0,8.799e-05,2]
[351694254,1738745440937,-587.9,8.799e-05,2]
[351694255,1738745440948,-500.0,8.799e-05,2]
[351694256,1738745440958,-564.17,8.799e-05,2]
[351694257,1738745440967,-500.0,8.799e-05,2]
[351694258,1738745440976,-502.32,8.799e-05,2]
[351694259,1738745440988,-500.0,8.799e-05,2]
[351694260,1738745440997,-503.50028185,8.799e-05,2]
[351694261,1738745441006,-500.0,8.799e-05,2]
[351694262,1738745441021,-500.0,8.799e-05,2]
[351694263,1738745441038,-500.0,8.799e-05,2]
[351694264,1738745441047,-502.72818145,8.799e-05,2]
[351694265,1738745441056,-505.330032,8.799e-05,2]
[351694266,1738745441065,-500.0,8.799e-05,2]
[351694267,1738745441074,-500.0,8.799e-05,2]
[351694268,1738745441083,-500.0,8.799e-05,2]
[351694269,1738745441092,-500.0,8.799e-05,2]
[351694270,1738745441101,-503.62703379,8.799e-05,2]
[351694271,1738745441111,-500.0,8.799e-05,2]
[351694272,1738745441119,-500.0,8.799e-05,2]
[351694273,1738745441128,-500.0,8.799e-05,2]
[351694274,1738745441138,-500.0,8.799e-05,2]
[351694275,1738745441148,-500.0,8.799e-05,2]
[351694276,1738745441158,-501.41970819,8.799e-05,2]
[351694277,1738745441167,-500.0,8.799e-05,2]
[351694278,1738745441176,-504.27514797,8.799e-05,2]
[351694279,1738745441186,-500.0,8.799e-05,2]
[351694280,1738745441195,-500.0,8.799e-05,2]
[351694281,1738745441205,-500.0,8.799e-05,2]
[351694282,1738745441214,-503.45,8.799e-05,2]
[351694283,1738745441223,-503.43045141,8.799e-05,2]
[351694284,1738745441233,-500.0,8.799e-05,2]
[351694285,1738745441244,-500.0,8.799e-05,2]
[351694286,1738745441253,-500.0,8.799e-05,2]
[351694287,1738745441263,-500.0,8.799e-05,2]
[351694288,1738745441272,-473.48075665,8.799e-05,2]
[351694289,1738745441281,-500.0,8.799e-05,2]
[351694290,1738745441291,-503.03279936,8.799e-05,2]
[351694291,1738745441300,-500.0,8.799e-05,2]
[351694292,1738745441310,-639.94,8.799e-05,2]
[351694293,1738745441321,-500.0,8.799e-05,2]
[351694294,1738745441331,-500.0,8.799e-05,2]
[351694295,1738745441341,-500.0,8.799e-05,2]
[351694296,1738745441350,-500.0,8.799e-05,2]
[351694297,1738745441361,-500.0,8.799e-05,2]
[351694298,1738745441370,-503.31994418,8.799e-05,2]
[351694299,1738745441379,-648.41,8.799e-05,2]
[351694300,1738745441392,-502.39025954,8.799e-05,2]
[351694301,1738745441403,-502.74440906,8.799e-05,2]
[351694302,1738745441413,-503.53065163,8.799e-05,2]
[351694303,1738745441423,-500.0,8.799e-05,2]
[351694304,1738745441432,-500.0,8.799e-05,2]
[351694305,1738745441443,-500.0,8.799e-05,2]
[351694306,1738745441455,-578.2882467,8.799e-05,2]
[351694307,1738745441464,-500.0,8.799e-05,2]
[351694308,1738745441473,-541.64,8.799e-05,2]
[351694309,1738745441482,-500.0,8.799e-05,2]
[351694310,1738745441494,-588.27,8.799e-05,2]
[351694311,1738745441503,-500.0,8.799e-05,2]
[351694312,1738745441512,-500.0,8.799e-05,2]
[351694313,1738745441522,-500.0,8.799e-05,2]
[351694314,1738745441531,-500.0,8.799e-05,2]
[351694315,1738745441541,-500.0,8.799e-05,2]
[351694316,1738745441550,-502.07741301,8.799e-05,2]
[351694317,1738745441559,-500.0,8.799e-05,2]
[351694318,1738745441569,-580.32,8.799e-05,2]
[351694319,1738745441579,-499.3025958,8.799e-05,2]
[351694320,1738745441588,-507.10251348,8.799e-05,2]
[351694321,1738745441597,-503.02771602,8.799e-05,2]
[351694322,1738745441607,-503.59200668,8.799e-05,2]
[351694323,1738745441616,-500.0,8.799e-05,2]
[351694324,1738745441625,-504.60952408,8.799e-05,2]
[351694325,1738745441635,-502.52609507,8.799e-05,2]
[351694326,1738745441645,-500.0,8.799e-05,2]
[351694327,1738745441654,-503.04443505,8.799e-05,2]
[351694328,1738745441664,-646.45,8.799e-05,2]
[351694329,1738745441673,-608.67488312,8.799e-05,2]
[351694330,1738745441688,-500.0,8.799e-05,2]
[351694331,1738745441698,-500.0,8.799e-05,2]
[351694332,1738745441707,-591.39,8.799e-05,2]
[351694333,1738745441717,-500.0,8.799e-05,2]
[351694334,1738745441727,-500.0,8.799e-05,2]
[351694335,1738745441739,-505.41021584,8.799e-05,2]
[351694336,1738745441749,-500.0,8.799e-05,2]
[351694337,1738745441759,-500.0,8.799e-05,2]
[351694338,1738745441768,-503.31598201,8.799e-05,2]
[351694339,1738745441782,-500.0,8.799e-05,2]
[351694340,1738745441797,-507.52545703,8.799e-05,2]
[351694341,1738745441807,-500.0,8.799e-05,2]
[351694342,1738745441817,-506.00436673,8.799e-05,2]
[351694343,1738745441827,-500.0,8.799e-05,2]
[351694344,1738745441836,-500.0,8.799e-05,2]
[351694345,1738745441847,-507.84710317,8.799e-05,2]
[351694346,1738745441856,-500.0,8.799e-05,2]
[351694347,1738745441865,-500.0,8.799e-05,2]
[351694348,1738745441875,-500.0,8.799e-05,2]
[351694349,1738745441886,-500.0,8.799e-05,2]
[351694350,1738745441895,-505.90168736,8.799e-05,2]
[351694351,1738745441907,-825.85,8.799e-05,2]
[351694352,1738745441918,-502.77432238,8.799e-05,2]
[351694353,1738745441929,-500.0,8.799e-05,2]
[351694354,1738745441941,-500.0,8.799e-05,2]
[351694355,1738745441954,-505.91789651,8.799e-05,2]
[351694356,1738745441966,-500.0,8.799e-05,2]
[351694357,1738745441977,-504.08806679,8.799e-05,2]
[351694358,1738745441987,-504.69971719,8.799e-05,2]
[351694359,1738745441997,-500.0,8.799e-05,2]
[351694360,1738745442007,-500.0,8.799e-05,2]
[351694361,1738745442019,-587.05,8.799e-05,2]
[351694362,1738745442031,-505.49563574,8.799e-05,2]
[351694363,1738745442042,-500.0,8.799e-05,2]
[351694364,1738745442053,-500.0,8.799e-05,2]
[351694365,1738745442064,-502.73165477,8.799e-05,2]
[351694366,1738745442075,-579.8,8.799e-05,2]
[351694367,1738745442085,-588.27464478,8.799e-05,2]
[351694368,1738745442096,-500.0,8.799e-05,2]
[351694369,1738745442109,-501.29795209,8.799e-05,2]
[351694370,1738745442121,-500.0,8.799e-05,2]
[351694371,1738745442134,-500.0,8.799e-05,2]
[351694372,1738745442145,-500.0,8.799e-05,2]
[351694373,1738745442157,-501.56638438,8.799e-05,2]
[351694374,1738745442168,-503.25079849,8.799e-05,2]
[351694375,1738745442179,-544.57,8.799e-05,2]
[351694376,1738745442189,-500.0,8.799e-05,2]
[351694377,1738745442199,-500.0,8.799e-05,2]
[351694378,1738745442210,-502.38600961,8.799e-05,2]
[351694379,1738745442220,-500.0,8.799e-05,2]
[351694380,1738745442232,-504.26203125,8.799e-05,2]
[351694381,1738745442246,-504.62814323,8.799e-05,2]
[351694382,1738745442258,-500.0,8.799e-05,2]
[351694383,1738745442270,-580.04,8.799e-05,2]
[351694384,1738745442281,-616.65,8.799e-05,2]
[351694385,1738745442292,-500.0,8.799e-05,2]
[351694386,1738745442302,-586.82,8.799e-05,2]
[351694387,1738745442318,-600.16,8.799e-05,2]
[351694388,1738745442330,-500.0,8.799e-05,2]
[351694389,1738745442342,-501.78928884,8.799e-05,2]
[351694390,1738745442354,-500.0,8.799e-05,2]
[351694391,1738745442365,-502.59077114,8.799e-05,2]
[351694392,1738745442377,-500.0,8.799e-05,2]
[351694393,1738745442391,-500.0,8.799e-05,2]
[351694394,1738745442403,-503.01531632,8.799e-05,2]
[351694395,1738745442413,-500.0,8.799e-05,2]
[351694396,1738745442425,-500.0,8.799e-05,2]
[351694397,1738745442439,-500.0,8.799e-05,2]
[351694398,1738745442451,-500.0,8.799e-05,2]
[351694399,1738745442463,-506.57547375,8.799e-05,2]
[351694400,1738745442475,-578.06,8.799e-05,2]
[351694401,1738745442489,-500.0,8.799e-05,2]
[351694402,1738745442500,-500.0,8.799e-05,2]
[351694403,1738745442511,-500.0,8.799e-05,2]
[351694404,1738745442523,-622.94,8.799e-05,2]
[351694405,1738745442534,-500.0,8.799e-05,2]
[351694406,1738745442545,-500.0,8.799e-05,2]
[351694407,1738745442559,-500.0,8.799e-05,2]
[351694408,1738745442571,-503.29578243,8.799e-05,2]
[351694409,1738745442582,-1119.95,8.799e-05,2]
[351694410,1738745442595,-500.0,8.799e-05,2]
[351694411,1738745442609,-500.0,8.799e-05,2]
[351694412,1738745442621,-500.0,8.799e-05,2]
[351694413,1738745442634,-500.0,8.799e-05,2]
[351694414,1738745442646,-500.0,8.799e-05,2]
[351694415,1738745442657,-500.0,8.799e-05,2]
[351694416,1738745442668,-500.0,8.799e-05,2]
[351694417,1738745442678,-624.6,8.799e-05,2]
[351694418,1738745442688,-500.0,8.799e-05,2]
[351694419,1738745442698,-602.95,8.799e-05,2]
[351694420,1738745442709,-500.0,8.799e-05,2]
[351694421,1738745442718,-503.33971869,8.799e-05,2]
[351694422,1738745442729,-500.0,8.799e-05,2]
[351694423,1738745442742,-504.21406984,8.799e-05,2]
[351694424,1738745442755,-500.0,8.799e-05,2]
[351694425,1738745442768,-504.67389925,8.799e-05,2]
[351694426,1738745442779,-500.0,8.799e-05,2]
[351694427,1738745442790,-465.73,8.799e-05,2]
[351694428,1738745442801,-500.0,8.799e-05,2]
[351694429,1738745442811,-500.0,8.799e-05,2]
[351694430,1738745442821,-502.53928297,8.799e-05,2]
[351694431,1738745442832,-500.0,8.799e-05,2]
[351694432,1738745442842,-500.0,8.799e-05,2]
[351694433,1738745442853,-500.0,8.799e-05,2]
[351694434,1738745442864,-500.0,8.799e-05,2]
[351694436,1738745442875,-735.56,8.799e-05,2]
[351694437,1738745442888,-500.0,8.799e-05,2]
[351694438,1738745442899,-502.2658641,8.799e-05,2]
[351694439,1738745442910,-500.0,8.799e-05,2]
[351694440,1738745442920,-500.0,8.799e-05,2]
[351694441,1738745442930,-500.0,8.799e-05,2]
[351694442,1738745442940,-500.0,8.799e-05,2]
[351694443,1738745442951,-500.0,8.799e-05,2]
[351694444,1738745442962,-500.0,8.799e-05,2]
[351694445,1738745442972,-505.46379491,8.799e-05,2]
[351694446,1738745442983,-500.0,8.799e-05,2]
[351694447,1738745442995,-502.9321119,8.799e-05,2]
[351694448,1738745443007,-500.0,8.799e-05,2]
[351694449,1738745443018,-500.0,8.799e-05,2]
[351694450,1738745443028,-502.00492515,8.799e-05,2]
[351694451,1738745443040,-642.47750251,8.799e-05,2]
[351694452,1738745443051,-502.55403821,8.799e-05,2]
[351694453,1738745443061,-500.0,8.799e-05,2]
[351694454,1738745443072,-500.0,8.799e-05,2]
[351694455,1738745443083,-500.0,8.799e-05,2]
[351694456,1738745443094,-500.0,8.799e-05,2]
[351694457,1738745443105,-500.0,8.799e-05,2]
[351694458,1738745443116,-526.36,8.799e-05,2]
[351694459,1738745443127,-500.0,8.799e-05,2]
[351694460,1738745443138,-500.0,8.799e-05,2]
[351694461,1738745443149,-501.33950316,8.799e-05,2]
[351694462,1738745443161,-500.0,8.799e-05,2]
[351694463,1738745443172,-541.43933075,8.799e-05,2]
[351694464,1738745443187,-503.04522922,8.799e-05,2]
[351694465,1738745443198,-500.0,8.799e-05,2]
[351694466,1738745443209,-568.51731456,8.799e-05,2]
[351694467,1738745443221,-500.0,8.799e-05,2]
[351694468,1738745443232,-500.0,8.799e-05,2]
[351694469,1738745443245,-577.37,8.799e-05,2]
[351694470,1738745443256,-500.0,8.799e-05,2]
[351694471,1738745443267,-500.0,8.799e-05,2]
[351694472,1738745443278,-500.0,8.799e-05,2]
[351694473,1738745443289,-624.79,8.799e-05,2]
[351694474,1738745443300,-500.0,8.799e-05,2]
[351694475,1738745443311,-500.0,8.799e-05,2]
[351694476,1738745443322,-500.0,8.799e-05,2]
[351694477,1738745443333,-500.0,8.799e-05,2]
[351694478,1738745443344,-561.57,8.799e-05,2]
[351694479,1738745443354,-500.0,8.799e-05,2]
[351694480,1738745443365,-563.04,8.799e-05,2]
[351694481,1738745443377,-500.0,8.799e-05,2]
[351694482,1738745443390,-501.63748418,8.799e-05,2]
[351694483,1738745443401,-500.0,8.799e-05,2]
[351694484,1738745443412,-502.1416475,8.799e-05,2]
[351694485,1738745443423,-517.93733405,8.799e-05,2]
[351694486,1738745443436,-500.0,8.799e-05,2]
[351694487,1738745443447,-500.0,8.799e-05,2]
[351694488,1738745443459,-546.28,8.799e-05,2]
[351694489,1738745443474,-504.02388333,8.799e-05,2]
[351694490,1738745443486,-500.0,8.799e-05,2]
[351694491,1738745443503,-500.0,8.799e-05,2]
[351694492,1738745443514,-500.0,8.799e-05,2]
[351694493,1738745443525,-500.0,8.799e-05,2]
[351694494,1738745443537,-500.0,8.799e-05,2]
[351694495,1738745443547,-511.35866013,8.799e-05,2]
[351694496,1738745443558,-500.0,8.799e-05,2]
[351694497,1738745443570,-500.0,8.799e-05,2]
[351694498,1738745443581,-500.0,8.799e-05,2]
[351694499,1738745443592,-500.0,8.799e-05,2]
[351694500,1738745443603,-535.01,8.799e-05,2]
[351694501,1738745443613,-500.0,8.799e-05,2]
[351694502,1738745443623,-500.0,8.799e-05,2]
[351694503,1738745443636,-500.0,8.799e-05,2]
[351694504,1738745443648,-502.29207654,8.799e-05,2]
[351694505,1738745443659,-500.0,8.799e-05,2]
[351694506,1738745443669,-501.61572552,8.799e-05,2]
[351694507,1738745443679,-500.0,8.799e-05,2]
[351694508,1738745443690,-500.0,8.799e-05,2]
[351694509,1738745443701,-500.0,8.799e-05,2]
[351694510,1738745443712,-205.33131628,8.799e-05,2]
[351694511,1738745443723,-500.0,8.799e-05,2]
[351694512,1738745443734,-500.0,8.799e-05,2]
[351694513,1738745443747,-500.0,8.799e-05,2]
[351694514,1738745443758,-500.0,8.799e-05,2]
[351694515,1738745443768,-500.0,8.799e-05,2]
[351694516,1738745443780,-505.78677585,8.799e-05,2]
[351694517,1738745443791,-500.0,8.799e-05,2]
[351694518,1738745443802,-500.0,8.799e-05,2]
[351694519,1738745443813,-502.00233314,8.799e-05,2]
[351694520,1738745443824,-500.0,8.799e-05,2]
[351694521,1738745443834,-500.0,8.799e-05,2]
[351694522,1738745443845,-500.0,8.799e-05,2]
[351694523,1738745443856,-591.32,8.799e-05,2]
[351694524,1738745443866,-645.41845126,8.799e-05,2]
[351694525,1738745443876,-500.0,8.799e-05,2]
[351694526,1738745443886,-500.0,8.799e-05,2]
[351694527,1738745443896,-500.0,8.799e-05,2]
[351694528,1738745443906,-1000.0,8.799e-05,2]
[351694529,1738745443917,-500.0,8.799e-05,2]
[351694530,1738745443928,-506.4699893,8.799e-05,2]
[351694531,1738745443939,-501.98120172,8.799e-05,2]
[351694532,1738745443949,-500.0,8.799e-05,2]
[351694533,1738745443960,-502.46588899,8.799e-05,2]
[351694534,1738745443971,-500.0,8.799e-05,2]
[351694535,1738745443982,-500.0,8.799e-05,2]
[351694536,1738745443993,-198.61676025,8.799e-05,2]
[351694537,1738745444003,-500.0,8.799e-05,2]
[351694538,1738745444013,-500.0,8.799e-05,2]
[351694539,1738745444023,-500.0,8.799e-05,2]
[351694540,1738745444035,-506.04580807,8.799e-05,2]
[351694541,1738745444045,-500.0,8.799e-05,2]
[351694542,1738745444056,-500.0,8.799e-05,2]
[351694543,1738745444066,-500.0,8.799e-05,2]
[351694544,1738745444076,-500.0,8.799e-05,2]
[351694545,1738745444086,-502.77559018,8.799e-05,2]
[351694546,1738745444096,-500.0,8.799e-05,2]
[351694547,1738745444106,-500.0,8.799e-05,2]
[351694548,1738745444116,-503.30507313,8.799e-05,2]
[351694549,1738745444127,-500.0,8.799e-05,2]
[351694550,1738745444137,-500.0,8.799e-05,2]
[351694551,1738745444148,-500.0,8.799e-05,2]
[351694552,1738745444159,-500.0,8.799e-05,2]
[351694553,1738745444170,-503.97371578,8.799e-05,2]
[351694554,1738745444181,-500.0,8.799e-05,2]
[351694555,1738745444192,-503.31045878,8.799e-05,2]
[351694556,1738745444202,-505.17037938,8.799e-05,2]
[351694557,1738745444213,-500.0,8.799e-05,2]
[351694558,1738745444223,-504.26409438,8.799e-05,2]
[351694559,1738745444234,-500.0,8.799e-05,2]
[351694560,1738745444245,-500.0,8.799e-05,2]
[351694561,1738745444255,-500.0,8.799e-05,2]
[351694562,1738745444266,-511.30562613,8.799e-05,2]
[351694563,1738745444276,-500.0,8.799e-05,2]
[351694564,1738745444287,-500.0,8.799e-05,2]
[351694565,1738745444298,-500.0,8.799e-05,2]
[351694566,1738745444308,-396.7,8.799e-05,2]
[351694567,1738745444319,-528911.0356255,8.8e-05,2]
[351694568,1738745444329,-49711.49558781,8.8e-05,2]
[351694569,1738745444351,-118774.93347008,8.8e-05,2]
[351694570,1738745444372,-978.3845048,8.8e-05,2]
[351694571,1738745444714,-0.65067028,8.799e-05,2]
[351694572,1738745444735,-499.34932972,8.799e-05,2]
[351694573,1738745444746,-179160.50120076,8.8e-05,2]
[351694574,1738745444757,-26798.7328,8.836e-05,2]
[351694575,1738745445080,-273.2051,8.836e-05,2]
[351694576,1738745445093,-1296.0248,8.836e-05,2]
[351694577,1738745445103,-656.57,8.84e-05,2]
[351694578,1738745445113,-878.54,8.84e-05,2]
[351694579,1738745445123,-500.0,8.936e-05,2]
[351694580,1738745445132,-264.04,8.936e-05,2]
[351694581,1738745445142,-500.0,8.936e-05,2]
[351694582,1738745445151,-491.88,8.936e-05,2]
[351694583,1738745445160,-443.24376315,8.936e-05,2]
[351694584,1738745445169,-373.04,8.936e-05,2]
[351694585,1738745445179,-581.14,8.936e-05,2]
[351694586,1738745445188,-500.0,8.936e-05,2]
[351694587,1738745445198,-500.0,8.936e-05,2]
[351694588,1738745445208,-500.0,8.936e-05,2]
[351694589,1738745445218,-634.98297254,8.936e-05,2]
[351694590,1738745445227,-565.55,8.936e-05,2]
[351694591,1738745445237,-343.45,8.936e-05,2]
[351694592,1738745445249,-320.95728467,8.936e-05,2]
[351694593,1738745445263,-500.0,8.936e-05,2]
[351694594,1738745445273,-198.29,8.936e-05,2]
[351694595,1738745445283,-500.0,8.936e-05,2]
[351694596,1738745445294,-208.42,8.936e-05,2]
[351694597,1738745445304,-500.0,8.936e-05,2]
[351694598,1738745445314,-500.0,8.936e-05,2]
[351694599,1738745445323,-500.0,8.936e-05,2]
[351694600,1738745445333,-500.0,8.936e-05,2]
[351694601,1738745445342,-396.67,8.936e-05,2]
[351694602,1738745445352,-526.19,8.936e-05,2]
[351694603,1738745445361,-339.39,8.936e-05,2]
[351694604,1738745445371,-298.01,8.936e-05,2]
[351694605,1738745445381,-390.2,8.936e-05,2]
[351694606,1738745445393,-500.0,8.936e-05,2]
[351694607,1738745445403,-561.77,8.936e-05,2]
[351694608,1738745445414,-500.0,8.936e-05,2]
[351694609,1738745445423,-500.0,8.936e-05,2]
[351694610,1738745445432,-500.0,8.936e-05,2]
[351694611,1738745445441,-500.0,8.936e-05,2]
[351694612,1738745445452,-500.0,8.936e-05,2]
[351694613,1738745445463,-159.08,8.936e-05,2]
[351694614,1738745445472,-182.99,8.936e-05,2]
[351694615,1738745445481,-520.35,8.936e-05,2]
[351694616,1738745445492,-500.0,8.936e-05,2]
[351694617,1738745445502,-500.0,8.936e-05,2]
[351694618,1738745445511,-500.0,8.936e-05,2]
[351694619,1738745445521,-500.0,8.936e-05,2]
[351694620,1738745445531,-500.0,8.936e-05,2]
[351694621,1738745445541,-382.66,8.936e-05,2]
[351694622,1738745445550,-555.04,8.936e-05,2]
[351694623,1738745445559,-500.0,8.936e-05,2]
[351694624,1738745445568,-500.0,8.936e-05,2]
[351694625,1738745445577,-500.0,8.936e-05,2]
[351694626,1738745445586,-320.500609,8.936e-05,2]
[351694627,1738745445596,-500.0,8.936e-05,2]
[351694628,1738745445605,-259.13,8.936e-05,2]
[351694629,1738745445614,-306.574254,8.936e-05,2]
[351694630,1738745445623,-500.0,8.936e-05,2]
[351694631,1738745445632,-208.18,8.936e-05,2]
[351694632,1738745445641,-500.0,8.936e-05,2]
[351694633,1738745445650,-589.4,8.936e-05,2]
[351694634,1738745445660,-237.41,8.936e-05,2]
[351694635,1738745445669,-339.57,8.936e-05,2]
[351694636,1738745445678,-592.81,8.936e-05,2]
[351694637,1738745445687,-500.0,8.936e-05,2]
[351694638,1738745445697,-500.0,8.936e-05,2]
[351694639,1738745445706,-500.0,8.936e-05,2]
[351694640,1738745445716,-292.82,8.936e-05,2]
[351694641,1738745445726,-156.45104531,8.936e-05,2]
[351694642,1738745445735,-537.54,8.936e-05,2]
[351694643,1738745445747,-500.0,8.936e-05,2]
[351694644,1738745445757,-575.38,8.936e-05,2]
[351694645,1738745445766,-626.53,8.936e-05,2]
[351694647,1738745445776,-618.01,8.936e-05,2]
[351694648,1738745445785,-193.53,8.936e-05,2]
[351694649,1738745445795,-500.0,8.936e-05,2]
[351694650,1738745445804,-500.0,8.936e-05,2]
[351694651,1738745445813,-500.0,8.936e-05,2]
[351694652,1738745445823,-466.46,8.936e-05,2]
[351694654,1738745445832,-372.67,8.936e-05,2]
[351694656,1738745445841,-360.54,8.936e-05,2]
[351694657,1738745445850,-500.0,8.936e-05,2]
[351694658,1738745445859,-500.0,8.936e-05,2]
[351694659,1738745445869,-500.0,8.936e-05,2]
[351694660,1738745445878,-500.0,8.936e-05,2]
[351694662,1738745445888,-452.76,8.936e-05,2]
[351694663,1738745445897,-566.07,8.936e-05,2]